[Event "Sabato rapido!"]
[Site "Chess.com"]
[Date "2020.05.30"]
[Round "3"]
[White "SanSecondoPR"]
[Black "APipitone"]
[Result "0-1"]
[WhiteElo "1321"]
[BlackElo "1504"]
[TimeControl "720+3"]
[EndTime "7:10:48 PDT"]
[Termination "APipitone ha vinto per abbandono"]

1. e4 {[%clk 0:12:02.9]} 1... c5 {[%clk 0:11:52.2]} 2. Nf3 {[%clk 0:12:02.9]}
2... d6 {[%clk 0:11:52.6]} 3. d4 {[%clk 0:12:03.4]} 3... cxd4 {[%clk 0:11:53.7]}
4. Nxd4 {[%clk 0:12:03.5]} 4... Nf6 {[%clk 0:11:54.8]} 5. Nc3 {[%clk 0:12:03.4]}
5... Nc6 {[%clk 0:11:55.2]} 6. Nb3 {[%clk 0:12:03.2]} 6... e6 {[%clk 0:11:49.2]}
7. Bg5 {[%clk 0:12:03.6]} 7... Be7 {[%clk 0:11:50.1]} 8. Qd2 {[%clk 0:12:03.1]}
8... h6 {[%clk 0:11:44.5]} 9. Bh4 {[%clk 0:12:02.4]} 9... g5 {[%clk 0:11:43.8]}
10. Bg3 {[%clk 0:12:03.1]} 10... e5 {[%clk 0:11:41.7]} 11. O-O-O {[%clk
0:11:53.8]} 11... Be6 {[%clk 0:11:37.5]} 12. h4 {[%clk 0:11:41.1]} 12... g4
{[%clk 0:11:31.3]} 13. f4 {[%clk 0:11:36.3]} 13... Nh5 {[%clk 0:11:08.4]} 14.
Ne2 {[%clk 0:10:47.9]} 14... Nxg3 {[%clk 0:11:03.9]} 15. Nxg3 {[%clk 0:10:45.4]}
15... Bxh4 {[%clk 0:10:32.7]} 16. Ne2 {[%clk 0:10:14.2]} 16... Be7 {[%clk
0:10:09.6]} 17. Kb1 {[%clk 0:10:02.9]} 17... a5 {[%clk 0:09:44.7]} 18. f5 {[%clk
0:09:58.6]} 18... Bxb3 {[%clk 0:09:43.6]} 19. cxb3 {[%clk 0:09:49.3]} 19... a4
{[%clk 0:09:41.3]} 20. b4 {[%clk 0:09:46.5]} 20... Qb6 {[%clk 0:09:36.5]} 21. a3
{[%clk 0:09:42.2]} 21... h5 {[%clk 0:09:05.2]} 22. Nc3 {[%clk 0:09:34.5]} 22...
Nd4 {[%clk 0:08:54.4]} 23. Nd5 {[%clk 0:09:25.8]} 23... Qc6 {[%clk 0:08:35.3]}
24. Rc1 {[%clk 0:09:15]} 24... Nb3 {[%clk 0:07:37.2]} 25. Qc2 {[%clk 0:08:41.5]}
25... Nxc1 {[%clk 0:07:33.4]} 26. Qxc6+ {[%clk 0:08:34.9]} 26... bxc6 {[%clk
0:07:31.5]} 27. Nc7+ {[%clk 0:08:33.2]} 27... Kd7 {[%clk 0:07:29.1]} 28. Nxa8
{[%clk 0:08:32.1]} 28... Rxa8 {[%clk 0:07:11.9]} 29. Kxc1 {[%clk 0:08:30.4]}
29... Rh8 {[%clk 0:07:07.1]} 30. Bc4 {[%clk 0:08:23.9]} 30... f6 {[%clk
0:07:05.1]} 31. b3 {[%clk 0:08:15.7]} 31... axb3 {[%clk 0:07:04.8]} 32. Bxb3
{[%clk 0:08:16.1]} 32... h4 {[%clk 0:06:52.2]} 33. Kd2 {[%clk 0:07:40.8]} 33...
Bd8 {[%clk 0:06:43.2]} 34. Ke3 {[%clk 0:07:36.1]} 34... Bb6+ {[%clk 0:06:41.5]}
35. Kd3 {[%clk 0:07:30.9]} 35... h3 {[%clk 0:06:29.4]} 36. g3 {[%clk 0:07:27.7]}
36... Bf2 {[%clk 0:06:11]} 37. b5 {[%clk 0:07:13.4]} 37... cxb5 {[%clk
0:06:02.3]} 38. Be6+ {[%clk 0:07:06.6]} 38... Kc7 {[%clk 0:05:55.3]} 39. Rc1+
{[%clk 0:07:03.4]} 39... Bc5 {[%clk 0:05:39.6]} 40. Rb1 {[%clk 0:06:35.2]} 40...
h2 {[%clk 0:05:26.4]} 41. Rh1 {[%clk 0:06:26.4]} 41... Bxa3 {[%clk 0:05:19.4]}
42. Ke3 {[%clk 0:06:16]} 42... Bc5+ {[%clk 0:05:14.9]} 43. Ke2 {[%clk
0:06:17.1]} 43... Bg1 {[%clk 0:05:08]} 44. Kf1 {[%clk 0:06:17.2]} 44... Kb6
{[%clk 0:04:49.6]} 45. Bb3 {[%clk 0:05:59.4]} 45... Kc5 {[%clk 0:04:49.1]} 46.
Kg2 {[%clk 0:05:55.8]} 46... Kd4 {[%clk 0:04:49.3]} 47. Bd5 {[%clk 0:05:54.1]}
47... b4 {[%clk 0:04:47.9]} 48. Kf1 {[%clk 0:05:53.1]} 48... Kc3 {[%clk
0:04:43]} 49. Ke2 {[%clk 0:05:50.9]} 49... b3 {[%clk 0:04:42.7]} 50. Kd1 {[%clk
0:05:46.5]} 50... b2 {[%clk 0:04:43]} 51. Ba2 {[%clk 0:05:44.3]} 51... Rh3
{[%clk 0:04:41.3]} 52. Bb1 {[%clk 0:05:38.9]} 52... Rxg3 {[%clk 0:04:41.6]} 53.
Bc2 {[%clk 0:05:19.4]} 53... Rg2 {[%clk 0:04:41.8]} 54. Bb1 {[%clk 0:05:20]}
54... Rd2+ {[%clk 0:04:32.7]} 55. Ke1 {[%clk 0:05:15.9]} 55... g3 {[%clk
0:04:33.4]} 56. Bd3 {[%clk 0:04:58.9]} 56... g2 {[%clk 0:04:27.1]} 57. Rxh2
{[%clk 0:04:53.1]} 57... Bxh2 {[%clk 0:04:27.1]} 0-1

[Event "Sabato rapido!"]
[Site "Chess.com"]
[Date "2020.05.30"]
[Round "3"]
[White "OMatteoWuO"]
[Black "malberici"]
[Result "1-0"]
[WhiteElo "1238"]
[BlackElo "1360"]
[TimeControl "720+3"]
[EndTime "7:14:36 PDT"]
[Termination "OMatteoWuO ha vinto per scaccomatto"]

1. d4 {[%clk 0:12:02.9]} 1... f5 {[%clk 0:11:53.1]} 2. c4 {[%clk 0:12:00.9]}
2... Nf6 {[%clk 0:11:54.9]} 3. Nc3 {[%clk 0:12:02.1]} 3... e6 {[%clk 0:11:56.7]}
4. e3 {[%clk 0:11:53.8]} 4... Be7 {[%clk 0:11:54.4]} 5. Nf3 {[%clk 0:11:47.2]}
5... d6 {[%clk 0:11:51.3]} 6. Bd3 {[%clk 0:11:40.6]} 6... h6 {[%clk 0:11:50]} 7.
b3 {[%clk 0:11:32.5]} 7... O-O {[%clk 0:11:49.6]} 8. Bb2 {[%clk 0:11:33.5]} 8...
c5 {[%clk 0:11:44.2]} 9. d5 {[%clk 0:11:17.8]} 9... e5 {[%clk 0:11:44.4]} 10.
Qc2 {[%clk 0:10:55.9]} 10... e4 {[%clk 0:11:35.7]} 11. Nxe4 {[%clk 0:10:43.5]}
11... fxe4 {[%clk 0:11:35.7]} 12. Bxe4 {[%clk 0:10:45.5]} 12... Nxe4 {[%clk
0:11:36.6]} 13. Qxe4 {[%clk 0:10:46.6]} 13... Bf5 {[%clk 0:11:34.9]} 14. Qf4
{[%clk 0:10:13.5]} 14... Na6 {[%clk 0:11:05.6]} 15. Qg3 {[%clk 0:09:38.8]} 15...
Bf6 {[%clk 0:10:46]} 16. Bxf6 {[%clk 0:09:39.9]} 16... Qxf6 {[%clk 0:10:46.9]}
17. O-O {[%clk 0:09:37.7]} 17... Nb4 {[%clk 0:10:24]} 18. Nh4 {[%clk 0:09:32.4]}
18... Nd3 {[%clk 0:09:50.6]} 19. Nxf5 {[%clk 0:09:27.1]} 19... Qxf5 {[%clk
0:09:47.6]} 20. f4 {[%clk 0:09:18.2]} 20... Rf6 {[%clk 0:09:14.6]} 21. Rad1
{[%clk 0:09:05.3]} 21... Rg6 {[%clk 0:08:38.5]} 22. Qf3 {[%clk 0:08:58.7]} 22...
Nb4 {[%clk 0:08:30.8]} 23. e4 {[%clk 0:08:54.6]} 23... Qf7 {[%clk 0:08:26.4]}
24. f5 {[%clk 0:08:53.2]} 24... Rf6 {[%clk 0:08:19.5]} 25. g4 {[%clk 0:08:51.6]}
25... Qf8 {[%clk 0:08:04.2]} 26. Rd2 {[%clk 0:08:49.7]} 26... g5 {[%clk
0:07:57.2]} 27. h3 {[%clk 0:08:43.7]} 27... Re8 {[%clk 0:07:43]} 28. Re1 {[%clk
0:08:42.3]} 28... Rf7 {[%clk 0:07:25.3]} 29. Qg3 {[%clk 0:08:38]} 29... Rd7
{[%clk 0:07:03.5]} 30. h4 {[%clk 0:08:34.8]} 30... gxh4 {[%clk 0:06:46.7]} 31.
Qxh4 {[%clk 0:08:35.3]} 31... Qg7 {[%clk 0:06:42.1]} 32. Rg2 {[%clk 0:08:32.4]}
32... Nd3 {[%clk 0:06:26.9]} 33. Re3 {[%clk 0:07:40.7]} 33... Ne5 {[%clk
0:05:46.6]} 34. g5 {[%clk 0:07:21.9]} 34... Kh7 {[%clk 0:05:26.2]} 35. g6+
{[%clk 0:06:36.8]} 35... Kh8 {[%clk 0:05:25.6]} 36. f6 {[%clk 0:06:26.2]} 36...
Qf8 {[%clk 0:04:16.7]} 37. g7+ {[%clk 0:06:18.8]} 37... Rxg7 {[%clk 0:04:13.4]}
38. Qxh6+ {[%clk 0:06:18.4]} 38... Rh7 {[%clk 0:04:08.3]} 39. Qxf8+ {[%clk
0:05:43.5]} 39... Rxf8 {[%clk 0:04:07.1]} 40. Reg3 {[%clk 0:05:41.5]} 40... Rh6
{[%clk 0:03:49.7]} 41. a4 {[%clk 0:04:52.5]} 41... Rh4 {[%clk 0:02:42.7]} 42. a5
{[%clk 0:04:45.3]} 42... a6 {[%clk 0:02:25.1]} 43. Rg7 {[%clk 0:04:01.5]} 43...
Rxf6 {[%clk 0:02:02.4]} 44. Rg8+ {[%clk 0:03:46.8]} 44... Kh7 {[%clk 0:02:01.9]}
45. R2g7+ {[%clk 0:03:39.8]} 45... Kh6 {[%clk 0:02:01.9]} 46. Rg3 {[%clk
0:03:35]} 46... Nf3+ {[%clk 0:01:48.1]} 47. Kg2 {[%clk 0:03:30.6]} 47... Rh2+
{[%clk 0:01:43.6]} 48. Kf1 {[%clk 0:03:30.6]} 48... Nd2+ {[%clk 0:01:30.4]} 49.
Kg1 {[%clk 0:03:13.8]} 49... Rh4 {[%clk 0:01:16.6]} 50. Rh8# {[%clk 0:03:12.6]}
1-0

[Event "Sabato rapido!"]
[Site "Chess.com"]
[Date "2020.05.30"]
[Round "4"]
[White "sirmale49"]
[Black "ottovolante"]
[Result "0-1"]
[WhiteElo "1354"]
[BlackElo "1007"]
[TimeControl "720+3"]
[EndTime "7:20:17 PDT"]
[Termination "ottovolante ha vinto per abbandono"]

1. f4 {[%clk 0:12:02.9]} 1... Nc6 {[%clk 0:11:59.1]} 2. Nf3 {[%clk 0:11:59]}
2... Nf6 {[%clk 0:11:59.6]} 3. g3 {[%clk 0:12:01.4]} 3... h6 {[%clk 0:12:00]} 4.
Bg2 {[%clk 0:12:03.3]} 4... d5 {[%clk 0:11:57]} 5. d3 {[%clk 0:12:01.8]} 5... e6
{[%clk 0:11:49.8]} 6. O-O {[%clk 0:12:01.6]} 6... Bc5+ {[%clk 0:11:41.2]} 7. e3
{[%clk 0:11:57.9]} 7... Ng4 {[%clk 0:11:30.7]} 8. d4 {[%clk 0:11:56.3]} 8... Bd6
{[%clk 0:11:22.3]} 9. h3 {[%clk 0:11:54]} 9... Nf6 {[%clk 0:11:20.9]} 10. Nc3
{[%clk 0:11:55.4]} 10... a6 {[%clk 0:10:43.5]} 0-1

[Event "Sabato rapido!"]
[Site "Chess.com"]
[Date "2020.05.30"]
[Round "4"]
[White "caramante"]
[Black "OMatteoWuO"]
[Result "1-0"]
[WhiteElo "1563"]
[BlackElo "1235"]
[TimeControl "720+3"]
[EndTime "7:25:39 PDT"]
[Termination "caramante ha vinto per scaccomatto"]

1. e4 {[%clk 0:12:00.8]} 1... c5 {[%clk 0:11:59.6]} 2. Nf3 {[%clk 0:12:02]} 2...
Nc6 {[%clk 0:12:00]} 3. d3 {[%clk 0:12:03.8]} 3... Nf6 {[%clk 0:11:59.4]} 4. c3
{[%clk 0:12:04]} 4... d6 {[%clk 0:12:00.5]} 5. g3 {[%clk 0:12:04.9]} 5... Bd7
{[%clk 0:11:49]} 6. Bg2 {[%clk 0:12:06.5]} 6... e6 {[%clk 0:11:47.7]} 7. O-O
{[%clk 0:12:08.1]} 7... Be7 {[%clk 0:11:45.7]} 8. h3 {[%clk 0:12:09.9]} 8... a6
{[%clk 0:11:46.1]} 9. Be3 {[%clk 0:12:11.2]} 9... b5 {[%clk 0:11:46]} 10. Nbd2
{[%clk 0:12:12.7]} 10... Rc8 {[%clk 0:11:35.9]} 11. Rc1 {[%clk 0:12:13.4]} 11...
Qc7 {[%clk 0:11:33.1]} 12. a3 {[%clk 0:12:13.8]} 12... c4 {[%clk 0:11:13.3]} 13.
dxc4 {[%clk 0:11:57.1]} 13... bxc4 {[%clk 0:11:13.5]} 14. Nxc4 {[%clk 0:11:32]}
14... Nxe4 {[%clk 0:11:07.9]} 15. Nb6 {[%clk 0:11:22.9]} 15... Rb8 {[%clk
0:10:45.5]} 16. Nxd7 {[%clk 0:11:21.3]} 16... Qxd7 {[%clk 0:10:44]} 17. Qe2
{[%clk 0:11:18.7]} 17... O-O {[%clk 0:10:31.4]} 18. Nd4 {[%clk 0:11:15.9]} 18...
Nxd4 {[%clk 0:10:30]} 19. Bxd4 {[%clk 0:11:13.5]} 19... Nf6 {[%clk 0:10:31.8]}
20. Rfd1 {[%clk 0:11:04]} 20... e5 {[%clk 0:10:25.8]} 21. Bxe5 {[%clk 0:10:57]}
21... Rfe8 {[%clk 0:10:15]} 22. Bxf6 {[%clk 0:10:51.8]} 22... Bxf6 {[%clk
0:10:15.7]} 23. Qc2 {[%clk 0:10:49.7]} 23... g6 {[%clk 0:09:54.7]} 24. b4 {[%clk
0:10:34.4]} 24... Rec8 {[%clk 0:09:45.5]} 25. c4 {[%clk 0:10:35.3]} 25... Bg7
{[%clk 0:09:34.6]} 26. Qe4 {[%clk 0:10:23.6]} 26... Re8 {[%clk 0:09:27.1]} 27.
Qf3 {[%clk 0:10:09.6]} 27... f5 {[%clk 0:09:11.3]} 28. Qd5+ {[%clk 0:10:05.7]}
28... Kh8 {[%clk 0:09:10.9]} 29. Qxd6 {[%clk 0:10:01.4]} 29... Qxd6 {[%clk
0:09:00.7]} 30. Rxd6 {[%clk 0:10:00.9]} 30... a5 {[%clk 0:08:39.6]} 31. b5
{[%clk 0:09:50.1]} 31... Bb2 {[%clk 0:08:27.9]} 32. Rcd1 {[%clk 0:09:49.6]}
32... Bxa3 {[%clk 0:08:27.4]} 33. Ra6 {[%clk 0:09:50.9]} 33... Bb4 {[%clk
0:08:26.4]} 34. Rd7 {[%clk 0:09:48.4]} 34... Re1+ {[%clk 0:08:23.7]} 35. Kh2
{[%clk 0:09:49.2]} 35... Rc1 {[%clk 0:07:59.8]} 36. Bd5 {[%clk 0:09:45.8]} 36...
Be1 {[%clk 0:07:42.5]} 37. Raa7 {[%clk 0:09:43.9]} 37... Bxf2 {[%clk 0:07:39]}
38. Rxh7# {[%clk 0:09:43.9]} 1-0

[Event "Sabato rapido!"]
[Site "Chess.com"]
[Date "2020.05.30"]
[Round "4"]
[White "APipitone"]
[Black "crippo"]
[Result "0-1"]
[WhiteElo "1477"]
[BlackElo "1569"]
[TimeControl "720+3"]
[EndTime "7:30:26 PDT"]
[Termination "crippo ha vinto per abbandono"]

1. e4 {[%clk 0:12:02.9]} 1... e5 {[%clk 0:12:01.1]} 2. Nf3 {[%clk 0:12:03.6]}
2... Nc6 {[%clk 0:12:02.1]} 3. Bb5 {[%clk 0:12:04.3]} 3... d6 {[%clk 0:12:03.2]}
4. d4 {[%clk 0:12:03.6]} 4... exd4 {[%clk 0:11:58.1]} 5. Nxd4 {[%clk 0:12:02.5]}
5... Bd7 {[%clk 0:11:59.2]} 6. Bxc6 {[%clk 0:11:56]} 6... bxc6 {[%clk
0:12:00.2]} 7. Nc3 {[%clk 0:11:55.8]} 7... g6 {[%clk 0:12:00.6]} 8. O-O {[%clk
0:11:55.2]} 8... Bg7 {[%clk 0:12:02.5]} 9. Be3 {[%clk 0:11:55.6]} 9... Ne7
{[%clk 0:12:02.9]} 10. f4 {[%clk 0:11:55.3]} 10... O-O {[%clk 0:12:02.8]} 11.
Nce2 {[%clk 0:11:32.4]} 11... Rb8 {[%clk 0:12:02.3]} 12. b3 {[%clk 0:11:26.5]}
12... c5 {[%clk 0:12:00.8]} 13. Nf3 {[%clk 0:11:23]} 13... Bc6 {[%clk
0:12:01.4]} 14. Ng3 {[%clk 0:10:48.4]} 14... Bxa1 {[%clk 0:12:01.3]} 15. Qxa1
{[%clk 0:10:48.5]} 15... Qd7 {[%clk 0:11:54.7]} 16. Qf6 {[%clk 0:10:36.5]} 16...
Qe6 {[%clk 0:11:54.2]} 17. Qh4 {[%clk 0:10:25.9]} 17... f6 {[%clk 0:11:37.4]}
18. f5 {[%clk 0:09:51.6]} 18... Qf7 {[%clk 0:11:37.5]} 19. fxg6 {[%clk
0:09:12.1]} 19... hxg6 {[%clk 0:11:32.5]} 20. Ng5 {[%clk 0:08:47.4]} 20... Qg7
{[%clk 0:11:31.1]} 21. Ne6 {[%clk 0:08:41.2]} 21... Qh7 {[%clk 0:11:29.7]} 22.
Qxh7+ {[%clk 0:08:38.4]} 22... Kxh7 {[%clk 0:11:30.7]} 23. Nxf8+ {[%clk
0:08:37]} 23... Rxf8 {[%clk 0:11:30.9]} 24. Bg5 {[%clk 0:08:13]} 24... Kg7
{[%clk 0:11:29]} 25. Bd2 {[%clk 0:08:07]} 25... Ng8 {[%clk 0:11:29.9]} 26. Bc3
{[%clk 0:08:03.8]} 26... Rf7 {[%clk 0:11:29.8]} 27. a3 {[%clk 0:07:39.2]} 27...
Re7 {[%clk 0:11:29.7]} 28. Re1 {[%clk 0:07:37.5]} 28... Kf7 {[%clk 0:11:15.4]}
29. Kf2 {[%clk 0:07:38.1]} 29... Nh6 {[%clk 0:11:11]} 30. h3 {[%clk 0:07:36.4]}
30... Bd7 {[%clk 0:10:49]} 31. Kf3 {[%clk 0:07:17.9]} 31... Bc6 {[%clk 0:10:40]}
32. Kf4 {[%clk 0:07:13.5]} 32... g5+ {[%clk 0:10:37.4]} 33. Ke3 {[%clk
0:07:00.7]} 33... f5 {[%clk 0:10:32]} 34. Kd2 {[%clk 0:06:40.9]} 34... f4 {[%clk
0:10:32.2]} 35. Nf5 {[%clk 0:06:22.9]} 35... Nxf5 {[%clk 0:10:20.3]} 36. exf5
{[%clk 0:06:23]} 36... Rxe1 {[%clk 0:10:21.9]} 37. Kxe1 {[%clk 0:06:22.2]} 37...
Bxg2 {[%clk 0:10:23.2]} 38. Kf2 {[%clk 0:06:13.8]} 38... Bxh3 {[%clk 0:10:24.6]}
39. Kf3 {[%clk 0:05:54.5]} 39... Bxf5 {[%clk 0:10:25.7]} 40. b4 {[%clk
0:05:31.7]} 40... cxb4 {[%clk 0:10:23.6]} 41. axb4 {[%clk 0:05:23.1]} 41... Bxc2
{[%clk 0:10:25.2]} 42. Bd4 {[%clk 0:05:23.9]} 42... a6 {[%clk 0:10:25.9]} 43.
Ba7 {[%clk 0:05:22.5]} 43... Bf5 {[%clk 0:10:22.4]} 44. Bb8 {[%clk 0:05:22.9]}
44... Ke6 {[%clk 0:10:20.2]} 45. Bxc7 {[%clk 0:05:22.9]} 45... Ke5 {[%clk
0:10:21.7]} 46. Bb8 {[%clk 0:04:49.9]} 46... g4+ {[%clk 0:10:20.5]} 47. Kf2
{[%clk 0:04:44.9]} 47... Be4 {[%clk 0:10:20.3]} 48. Ke2 {[%clk 0:04:20.1]} 48...
g3 {[%clk 0:10:19]} 49. Bc7 {[%clk 0:04:13.4]} 49... f3+ {[%clk 0:10:17.9]} 50.
Kf1 {[%clk 0:04:10]} 50... Bd3+ {[%clk 0:10:18.4]} 51. Kg1 {[%clk 0:04:01]}
51... f2+ {[%clk 0:10:20.4]} 0-1

[Event "Sabato rapido!"]
[Site "Chess.com"]
[Date "2020.05.30"]
[Round "4"]
[White "malberici"]
[Black "SanSecondoPR"]
[Result "0-1"]
[WhiteElo "1344"]
[BlackElo "1330"]
[TimeControl "720+3"]
[EndTime "7:33:14 PDT"]
[Termination "SanSecondoPR ha vinto per abbandono"]

1. d4 {[%clk 0:12:02.4]} 1... d5 {[%clk 0:12:01.1]} 2. c4 {[%clk 0:12:03.6]}
2... e5 {[%clk 0:12:01.4]} 3. dxe5 {[%clk 0:12:04.6]} 3... d4 {[%clk 0:12:02.6]}
4. Qd3 {[%clk 0:11:59.4]} 4... Nc6 {[%clk 0:11:59.1]} 5. e3 {[%clk 0:11:55.7]}
5... Nge7 {[%clk 0:11:46]} 6. exd4 {[%clk 0:11:52.1]} 6... Bf5 {[%clk
0:11:45.7]} 7. Qc3 {[%clk 0:11:37.8]} 7... Ng6 {[%clk 0:11:41.7]} 8. Bd3 {[%clk
0:11:31.9]} 8... Bb4 {[%clk 0:11:39.7]} 9. Bxf5 {[%clk 0:11:30.1]} 9... Bxc3+
{[%clk 0:11:38.2]} 10. Nxc3 {[%clk 0:11:31.2]} 10... Qxd4 {[%clk 0:11:19.3]} 11.
Nge2 {[%clk 0:11:23.5]} 11... Qxe5 {[%clk 0:11:16.2]} 12. Be4 {[%clk 0:11:13.9]}
12... O-O {[%clk 0:11:09.4]} 13. O-O {[%clk 0:11:13.3]} 13... Nd4 {[%clk
0:10:59.3]} 14. Nxd4 {[%clk 0:11:11.5]} 14... Qxd4 {[%clk 0:10:55.9]} 15. Be3
{[%clk 0:11:09.3]} 15... Qxc4 {[%clk 0:10:49.6]} 16. Rac1 {[%clk 0:10:56.6]}
16... Qa6 {[%clk 0:10:34.2]} 17. a3 {[%clk 0:10:46.1]} 17... Ne5 {[%clk
0:10:10.2]} 18. Nd5 {[%clk 0:10:36.5]} 18... Rad8 {[%clk 0:09:09.3]} 19. Ne7+
{[%clk 0:09:52.7]} 19... Kh8 {[%clk 0:09:02.5]} 20. Rxc7 {[%clk 0:08:56]} 20...
Qf6 {[%clk 0:08:06.4]} 21. Nf5 {[%clk 0:08:28.1]} 21... Rd7 {[%clk 0:07:55.4]}
22. Rc5 {[%clk 0:07:33.7]} 22... Nd3 {[%clk 0:07:34.7]} 23. Rb5 {[%clk
0:06:49.8]} 23... Qe6 {[%clk 0:06:39.6]} 24. Ng3 {[%clk 0:06:21.2]} 24... f5
{[%clk 0:06:15.5]} 25. Bxf5 {[%clk 0:05:57.4]} 25... Rxf5 {[%clk 0:06:09.8]} 26.
Rxf5 {[%clk 0:05:45.5]} 26... h6 {[%clk 0:05:50.3]} 27. Bxa7 {[%clk 0:05:21.3]}
27... Rf7 {[%clk 0:05:35.8]} 28. Rh5 {[%clk 0:04:59.4]} 28... b6 {[%clk
0:05:31.7]} 29. Rb5 {[%clk 0:04:22.7]} 29... Rxa7 {[%clk 0:05:25.8]} 30. h3
{[%clk 0:04:07.2]} 30... Rf7 {[%clk 0:05:17.1]} 31. Rb3 {[%clk 0:03:56]} 31...
Qxb3 {[%clk 0:05:10.2]} 0-1

[Event "Sabato rapido!"]
[Site "Chess.com"]
[Date "2020.05.30"]
[Round "4"]
[White "Carbon"]
[Black "pedrak"]
[Result "0-1"]
[WhiteElo "1759"]
[BlackElo "1694"]
[TimeControl "720+3"]
[EndTime "7:34:51 PDT"]
[Termination "pedrak ha vinto per abbandono"]

1. e4 {[%clk 0:12:02.5]} 1... d6 {[%clk 0:11:51.7]} 2. d4 {[%clk 0:12:01]} 2...
e5 {[%clk 0:11:52.9]} 3. Nf3 {[%clk 0:11:50.5]} 3... exd4 {[%clk 0:11:51.7]} 4.
Nxd4 {[%clk 0:11:48.9]} 4... Nf6 {[%clk 0:11:52.6]} 5. Nc3 {[%clk 0:11:50.6]}
5... Be7 {[%clk 0:11:53.4]} 6. Be2 {[%clk 0:11:46.2]} 6... O-O {[%clk
0:11:54.2]} 7. Be3 {[%clk 0:11:46.5]} 7... a6 {[%clk 0:11:50.1]} 8. O-O {[%clk
0:11:40.7]} 8... b5 {[%clk 0:11:47.2]} 9. Bf3 {[%clk 0:11:12.8]} 9... Bb7 {[%clk
0:11:47.7]} 10. Nf5 {[%clk 0:11:09.5]} 10... Re8 {[%clk 0:11:33.1]} 11. Bg5
{[%clk 0:10:50.5]} 11... h6 {[%clk 0:11:22.1]} 12. Bh4 {[%clk 0:10:36.3]} 12...
Nbd7 {[%clk 0:11:05.7]} 13. Re1 {[%clk 0:10:07.2]} 13... Ne5 {[%clk 0:10:50.8]}
14. Nxe7+ {[%clk 0:09:53.1]} 14... Qxe7 {[%clk 0:10:48.7]} 15. Be2 {[%clk
0:08:52.3]} 15... Ng6 {[%clk 0:10:08.7]} 16. Bxf6 {[%clk 0:08:41.2]} 16... Qxf6
{[%clk 0:10:05.3]} 17. Qd2 {[%clk 0:08:01.9]} 17... Bxe4 {[%clk 0:09:31.2]} 18.
Nxe4 {[%clk 0:07:46]} 18... Rxe4 {[%clk 0:09:31.2]} 19. Bf3 {[%clk 0:07:45.7]}
19... Rxe1+ {[%clk 0:09:17]} 20. Rxe1 {[%clk 0:07:48.6]} 20... Rd8 {[%clk
0:09:13.2]} 21. b3 {[%clk 0:07:42.7]} 21... Ne5 {[%clk 0:09:14]} 22. Be4 {[%clk
0:06:59.9]} 22... d5 {[%clk 0:08:27.7]} 23. Bd3 {[%clk 0:06:56.2]} 23... Nxd3
{[%clk 0:08:28.1]} 24. Qxd3 {[%clk 0:06:57.5]} 24... c5 {[%clk 0:08:20.2]} 25.
a4 {[%clk 0:06:33.8]} 25... bxa4 {[%clk 0:08:01.6]} 26. bxa4 {[%clk 0:06:36.7]}
26... c4 {[%clk 0:08:02.2]} 27. Qa3 {[%clk 0:06:10.6]} 27... d4 {[%clk
0:07:25.1]} 28. Qc5 {[%clk 0:05:13.1]} 28... c3 {[%clk 0:06:22.4]} 29. g3 {[%clk
0:05:03.2]} 29... Qg6 {[%clk 0:05:18.1]} 30. Re2 {[%clk 0:04:07]} 30... d3
{[%clk 0:05:13.4]} 31. cxd3 {[%clk 0:04:01.5]} 31... Qxd3 {[%clk 0:05:14.2]} 32.
Qe3 {[%clk 0:03:44.4]} 32... Qxe3 {[%clk 0:04:45.5]} 33. fxe3 {[%clk 0:03:41.3]}
33... Rd2 {[%clk 0:04:46.2]} 34. Kf2 {[%clk 0:03:08.5]} 34... c2 {[%clk
0:04:41.9]} 0-1

[Event "Sabato rapido!"]
[Site "Chess.com"]
[Date "2020.05.30"]
[Round "4"]
[White "sergiodone"]
[Black "Mrtre7"]
[Result "0-1"]
[WhiteElo "1429"]
[BlackElo "1465"]
[TimeControl "720+3"]
[EndTime "7:35:57 PDT"]
[Termination "Mrtre7 ha vinto per abbandono"]

1. e4 {[%clk 0:11:52.4]} 1... c5 {[%clk 0:12:01.1]} 2. Nf3 {[%clk 0:11:52.4]}
2... g6 {[%clk 0:12:02.2]} 3. c3 {[%clk 0:11:52.6]} 3... d5 {[%clk 0:12:01.9]}
4. exd5 {[%clk 0:11:30]} 4... Qxd5 {[%clk 0:11:55.3]} 5. d4 {[%clk 0:11:31.6]}
5... Nc6 {[%clk 0:11:29.7]} 6. Be2 {[%clk 0:11:16.7]} 6... Bg7 {[%clk
0:11:28.2]} 7. c4 {[%clk 0:11:13.7]} 7... Qd8 {[%clk 0:11:16]} 8. d5 {[%clk
0:11:14.9]} 8... Nd4 {[%clk 0:11:00.9]} 9. Nxd4 {[%clk 0:10:57.8]} 9... cxd4
{[%clk 0:10:46.2]} 10. O-O {[%clk 0:10:57.8]} 10... e5 {[%clk 0:10:33.2]} 11.
Bf3 {[%clk 0:10:48.3]} 11... Ne7 {[%clk 0:10:31.2]} 12. Nd2 {[%clk 0:10:43.6]}
12... O-O {[%clk 0:10:32]} 13. g3 {[%clk 0:10:40.2]} 13... f5 {[%clk 0:10:27.3]}
14. Bg2 {[%clk 0:10:41.7]} 14... e4 {[%clk 0:09:56.2]} 15. Qb3 {[%clk
0:10:39.7]} 15... Qb6 {[%clk 0:09:38.8]} 16. c5 {[%clk 0:10:23.5]} 16... Qxc5
{[%clk 0:07:47.4]} 17. d6+ {[%clk 0:10:23.6]} 17... Nd5 {[%clk 0:07:49.4]} 18.
d7 {[%clk 0:09:45.7]} 18... Bxd7 {[%clk 0:07:20.5]} 19. Qxb7 {[%clk 0:09:45.9]}
19... Bc6 {[%clk 0:07:08.8]} 20. Qa6 {[%clk 0:09:47]} 20... Nb4 {[%clk
0:07:01.9]} 21. Qa3 {[%clk 0:09:39.6]} 21... a5 {[%clk 0:05:26]} 22. Qb3+ {[%clk
0:09:40.6]} 22... Bd5 {[%clk 0:05:20.7]} 23. Qd1 {[%clk 0:09:41.7]} 23... d3
{[%clk 0:04:54.6]} 24. b3 {[%clk 0:09:41]} 24... Bxa1 {[%clk 0:04:50.8]} 25. Nc4
{[%clk 0:09:37.5]} 25... Bxc4 {[%clk 0:04:47.1]} 26. bxc4 {[%clk 0:09:37.8]}
26... Nc2 {[%clk 0:04:39.4]} 27. Bh6 {[%clk 0:09:37.9]} 27... Rfd8 {[%clk
0:04:38.4]} 28. Qd2 {[%clk 0:09:33.4]} 28... Bd4 {[%clk 0:04:32.6]} 29. h4
{[%clk 0:09:09]} 29... Ne3 {[%clk 0:04:23.5]} 30. fxe3 {[%clk 0:09:01.2]} 30...
Bg7 {[%clk 0:04:19.2]} 31. Bg5 {[%clk 0:08:58]} 31... Rdc8 {[%clk 0:04:17.6]}
32. Rc1 {[%clk 0:08:54.8]} 32... Qb4 {[%clk 0:04:09.8]} 33. Qd1 {[%clk
0:08:07.5]} 33... Rxc4 {[%clk 0:03:59.6]} 34. h5 {[%clk 0:08:06.9]} 34... Rac8
{[%clk 0:03:55.2]} 35. Rxc4 {[%clk 0:07:39.4]} 35... Qxc4 {[%clk 0:03:34.5]} 36.
Kh2 {[%clk 0:07:34.6]} 36... Qc2 {[%clk 0:03:30.9]} 37. Qf1 {[%clk 0:07:31.2]}
37... d2 {[%clk 0:02:45.4]} 38. Qa6 {[%clk 0:06:36.6]} 38... Re8 {[%clk
0:02:26.9]} 39. hxg6 {[%clk 0:06:35.4]} 39... d1=Q {[%clk 0:01:51.8]} 40. gxh7+
{[%clk 0:06:36.1]} 40... Kxh7 {[%clk 0:01:41.5]} 41. Bh4 {[%clk 0:06:05.5]}
41... Qde2 {[%clk 0:01:35.5]} 0-1